fUSD/lending_fUSD_20240803
["ID","MTS","AMOUNT","RATE_DAILY","PERIOD"]
[333949345,1722647437180,-626.83,0.00016438,2]
[333949346,1722647437190,-500.0,0.00016438,2]
[333949347,1722647437199,-500.0,0.00016438,2]
[333949348,1722647437209,-1238.8,0.00016438,2]
[333949349,1722647437219,-500.0,0.00016438,2]
[333949350,1722647437232,-500.0,0.00016438,2]
[333949351,1722647437242,-1882.71,0.00016438,2]
[333949352,1722647437253,-1965.3,0.00016438,2]
[333949353,1722647437262,-500.0,0.00016438,2]
[333949354,1722647437272,-500.0,0.00016438,2]
[333949355,1722647437282,-500.0,0.00016438,2]
[333949356,1722647437292,-1833.2,0.00016438,2]
[333949357,1722647437302,-2219.62,0.00016438,2]
[333949358,1722647437312,-534.98,0.00016438,2]
[333949359,1722647437322,-698.61,0.00016438,2]
[333949360,1722647437333,-500.0,0.00016438,2]
[333949361,1722647437343,-677.65,0.00016438,2]
[333949362,1722647437353,-983.96,0.00016438,2]
[333949363,1722647437363,-745.35,0.00016438,2]
[333949364,1722647437374,-516.84,0.00016438,2]
[333949365,1722647437385,-500.0,0.00016438,2]
[333949366,1722647437396,-2041.37,0.00016438,2]
[333949367,1722647437407,-817.11,0.00016438,2]
[333949368,1722647437418,-597.7,0.00016438,2]
[333949369,1722647437429,-1172.08,0.00016438,2]
[333949370,1722647437440,-949.1,0.00016438,2]
[333949371,1722647437450,-500.0,0.00016438,2]
[333949372,1722647437460,-908.73,0.00016438,2]
[333949373,1722647437473,-994.34,0.00016438,2]
[333949374,1722647437487,-617.77,0.00016438,2]
[333949375,1722647437497,-500.0,0.00016438,2]
[333949376,1722647437508,-500.0,0.00016438,2]
[333949377,1722647437517,-1160.98,0.00016438,2]
[333949378,1722647437527,-181.44273102,0.00016438,2]
[333949379,1722647437539,-788.77,0.00016438,2]
[333949380,1722647437549,-1027.56,0.00016438,2]
[333949381,1722647437560,-500.0,0.00016438,2]
[333949382,1722647437570,-500.0,0.00016438,2]
[333949383,1722647437580,-500.0,0.00016438,2]
[333949384,1722647437591,-938.54,0.00016438,2]
[333949385,1722647437601,-879.59,0.00016438,2]
[333949386,1722647437611,-646.62,0.00016438,2]
[333949387,1722647437622,-631.37,0.00016438,2]
[333949388,1722647437633,-500.0,0.00016438,2]
[333949389,1722647437644,-1040.22,0.00016438,2]
[333949390,1722647437658,-500.0,0.00016438,2]
[333949391,1722647437668,-500.0,0.00016438,2]
[333949392,1722647437679,-500.0,0.00016438,2]
[333949393,1722647437688,-500.0,0.00016438,2]
[333949394,1722647437699,-2033.69,0.00016438,2]
[333949395,1722647437709,-500.0,0.00016438,2]
[333949396,1722647437719,-679.31,0.00016438,2]
[333949397,1722647437733,-704.43,0.00016438,2]
[333949398,1722647437743,-607.95,0.00016438,2]
[333949399,1722647437753,-1561.0,0.00016438,2]
[333949400,1722647437763,-1145.16,0.00016438,2]
[333949401,1722647437773,-500.0,0.00016438,2]
[333949402,1722647437782,-500.0,0.00016438,2]
[333949403,1722647437792,-500.0,0.00016438,2]
[333949404,1722647437802,-2342.19,0.00016438,2]
[333949405,1722647437813,-1000.0,0.00016438,2]
[333949406,1722647437823,-500.0,0.00016438,2]
[333949407,1722647437834,-500.0,0.00016438,2]
[333949408,1722647437845,-1439.6,0.00016438,2]
[333949409,1722647437855,-500.0,0.00016438,2]
[333949410,1722647437865,-2274.33,0.00016438,2]
[333949411,1722647437875,-500.0,0.00016438,2]
[333949412,1722647437885,-3059.5,0.00016438,2]
[333949413,1722647437895,-500.0,0.00016438,2]
[333949414,1722647437905,-500.0,0.00016438,2]
[333949415,1722647437915,-932.05,0.00016438,2]
[333949416,1722647437924,-1748.51,0.00016438,2]
[333949417,1722647437935,-500.0,0.00016438,2]
[333949418,1722647437945,-1290.75,0.00016438,2]
[333949419,1722647437954,-500.0,0.00016438,2]
[333949420,1722647437964,-2385.67,0.00016438,2]
[333949421,1722647437977,-669.28,0.00016438,2]
[333949422,1722647437986,-726.17,0.00016438,2]
[333949423,1722647437996,-500.0,0.00016438,2]
[333949424,1722647438006,-500.0,0.00016438,2]
[333949425,1722647438016,-500.0,0.00016438,2]
[333949426,1722647438026,-961.26,0.00016438,2]
[333949427,1722647438035,-832.38,0.00016438,2]
[333949428,1722647438045,-500.0,0.00016438,2]
[333949429,1722647438055,-500.0,0.00016438,2]
[333949430,1722647438065,-517.20466163,0.00016438,2]
[333949431,1722647438075,-1433.76,0.00016438,2]
[333949433,1722647438084,-400.0,0.00016438,2]
[333949434,1722647438094,-2028.45,0.00016438,2]
[333949435,1722647438103,-500.0,0.00016438,2]
[333949436,1722647438113,-500.0,0.00016438,2]
[333949437,1722647438215,-500.0,0.00016438,2]
[333949438,1722647438227,-1763.81,0.00016438,2]
[333949439,1722647438238,-795.67,0.00016438,2]
[333949440,1722647438247,-500.0,0.00016438,2]
[333949441,1722647438257,-906.15,0.00016438,2]
[333949442,1722647438266,-683.41,0.00016438,2]
[333949443,1722647438276,-606.24,0.00016438,2]
[333949444,1722647438285,-515.81,0.00016438,2]
[333949445,1722647438294,-500.0,0.00016438,2]
[333949446,1722647438303,-500.0,0.00016438,2]
[333949448,1722647438313,-705.07,0.00016438,2]
[333949449,1722647438322,-912.83,0.00016438,2]
[333949450,1722647438331,-500.0,0.00016438,2]
[333949451,1722647438341,-500.0,0.00016438,2]
[333949452,1722647438351,-771.19,0.00016438,2]
[333949453,1722647438360,-810.2,0.00016438,2]
[333949454,1722647438369,-500.0,0.00016438,2]
[333949455,1722647438378,-832.95,0.00016438,2]
[333949456,1722647438387,-1366.9,0.00016438,2]
[333949457,1722647438397,-1288.69,0.00016438,2]
[333949458,1722647438406,-598.77,0.00016438,2]
[333949459,1722647438416,-500.0,0.00016438,2]
[333949460,1722647438426,-774.56,0.00016438,2]
[333949461,1722647438435,-1935.6,0.00016438,2]
[333949462,1722647438444,-500.0,0.00016438,2]
[333949463,1722647438453,-1172.01,0.00016438,2]
[333949464,1722647438463,-565.25,0.00016438,2]
[333949465,1722647438474,-500.0,0.00016438,2]
[333949466,1722647438486,-918.19,0.00016438,2]
[333949467,1722647438495,-1189.31,0.00016438,2]
[333949468,1722647438504,-1005.63,0.00016438,2]
[333949469,1722647438515,-500.0,0.00016438,2]
[333949470,1722647438524,-503.77,0.00016438,2]
[333949471,1722647438533,-500.0,0.00016438,2]
[333949472,1722647438542,-663.27,0.00016438,2]
[333949473,1722647438551,-1454.73,0.00016438,2]
[333949474,1722647438560,-500.0,0.00016438,2]
[333949475,1722647438570,-522.08111571,0.00016438,2]
[333949476,1722647438579,-500.0,0.00016438,2]
[333949477,1722647438588,-500.0,0.00016438,2]
[333949478,1722647438597,-2087.28,0.00016438,2]
[333949479,1722647438606,-684.9,0.00016438,2]
[333949480,1722647438616,-500.0,0.00016438,2]
[333949481,1722647438627,-500.0,0.00016438,2]
[333949482,1722647438638,-2607.21,0.00016438,2]
[333949483,1722647438647,-623.62363763,0.00016438,2]
[333949484,1722647438657,-500.0,0.00016438,2]
[333949485,1722647438667,-500.0,0.00016438,2]
[333949486,1722647438676,-650.1,0.00016438,2]
[333949487,1722647438686,-500.0,0.00016438,2]
[333949488,1722647438695,-828.17,0.00016438,2]
[333949489,1722647438706,-565.68,0.00016438,2]
[333949490,1722647438715,-500.0,0.00016438,2]
[333949491,1722647438729,-500.0,0.00016438,2]
[333949492,1722647438739,-1183.47,0.00016438,2]
[333949493,1722647438748,-500.0,0.00016438,2]
[333949494,1722647438758,-1407.44,0.00016438,2]
[333949495,1722647438767,-500.0,0.00016438,2]
[333949496,1722647438777,-1400.8,0.00016438,2]
[333949497,1722647438786,-926.58,0.00016438,2]
[333949498,1722647438796,-1741.85,0.00016438,2]
[333949499,1722647438806,-2958.24,0.00016438,2]
[333949500,1722647438816,-549.11,0.00016438,2]
[333949501,1722647438825,-500.0,0.00016438,2]
[333949502,1722647438835,-500.0,0.00016438,2]
[333949504,1722647438846,-500.0,0.00016438,2]
[333949505,1722647438856,-644.6,0.00016438,2]
[333949506,1722647438866,-500.0,0.00016438,2]
[333949507,1722647438876,-555.77,0.00016438,2]
[333949508,1722647438887,-500.0,0.00016438,2]
[333949509,1722647438897,-1761.32,0.00016438,2]
[333949510,1722647438906,-500.0,0.00016438,2]
[333949511,1722647438916,-500.0,0.00016438,2]
[333949512,1722647438926,-500.0,0.00016438,2]
[333949513,1722647438936,-1864.63,0.00016438,2]
[333949514,1722647438946,-1030.19,0.00016438,2]
[333949515,1722647438957,-623.03,0.00016438,2]
[333949516,1722647438967,-653.27,0.00016438,2]
[333949517,1722647438982,-500.0,0.00016438,2]
[333949519,1722647438992,-1401.49,0.00016438,2]
[333949521,1722647439002,-856.56,0.00016438,2]
[333949522,1722647439013,-773.66,0.00016438,2]
[333949523,1722647439024,-500.0,0.00016438,2]
[333949524,1722647439035,-1713.19,0.00016438,2]
[333949525,1722647439044,-500.0,0.00016438,2]
[333949526,1722647439054,-500.0,0.00016438,2]
[333949527,1722647439064,-500.0,0.00016438,2]
[333949528,1722647439074,-500.0,0.00016438,2]
[333949529,1722647439083,-567.02,0.00016438,2]
[333949530,1722647439092,-500.0,0.00016438,2]
[333949531,1722647439102,-500.0,0.00016438,2]
[333949532,1722647439112,-500.0,0.00016438,2]
[333949533,1722647439122,-500.0,0.00016438,2]
[333949534,1722647439131,-268.77496514,0.00016438,2]
[333949535,1722647439141,-586.63,0.00016438,2]
[333949537,1722647439150,-1147.14,0.00016438,2]
[333949538,1722647439160,-1597.42,0.00016438,2]
[333949539,1722647439169,-652.57,0.00016438,2]
[333949541,1722647439179,-1477.59,0.00016438,2]
[333949543,1722647439188,-500.0,0.00016438,2]
[333949545,1722647439197,-1700.69,0.00016438,2]
[333949547,1722647439207,-500.0,0.00016438,2]
[333949549,1722647439216,-2624.25,0.00016438,2]
[333949551,1722647439229,-1857.95,0.00016438,2]
[333949553,1722647439238,-500.0,0.00016438,2]
[333949555,1722647439248,-500.0,0.00016438,2]
[333949557,1722647439258,-513.07,0.00016438,2]
[333949559,1722647439268,-594.95,0.00016438,2]
[333949561,1722647439278,-1663.75,0.00016438,2]
[333949563,1722647439287,-500.0,0.00016438,2]
[333949565,1722647439297,-500.0,0.00016438,2]
[333949566,1722647439306,-563.05,0.00016438,2]
[333949567,1722647439316,-2002.44,0.00016438,2]
[333949568,1722647439325,-1015.96,0.00016438,2]
[333949569,1722647439335,-581.11,0.00016438,2]
[333949570,1722647439344,-500.0,0.00016438,2]
[333949571,1722647439354,-500.0,0.00016438,2]
[333949572,1722647439364,-250.38973327,0.00016438,2]
[333949573,1722647439373,-500.0,0.00016438,2]
[333949574,1722647439383,-500.0,0.00016438,2]
[333949575,1722647439394,-920.01,0.00016438,2]
[333949576,1722647439405,-1492.16,0.00016438,2]
[333949577,1722647439416,-825.38,0.00016438,2]
[333949578,1722647439425,-561.01,0.00016438,2]
[333949579,1722647439435,-500.0,0.00016438,2]
[333949580,1722647439444,-500.0,0.00016438,2]
[333949581,1722647439454,-681.28,0.00016438,2]
[333949582,1722647439464,-500.0,0.00016438,2]
[333949583,1722647439475,-3022.48,0.00016438,2]
[333949584,1722647439485,-576.03,0.00016438,2]
[333949585,1722647439495,-500.0,0.00016438,2]
[333949586,1722647439504,-500.0,0.00016438,2]
[333949587,1722647439514,-665.88,0.00016438,2]
[333949588,1722647439524,-1046.0,0.00016438,2]
[333949589,1722647439533,-840.81,0.00016438,2]
[333949590,1722647439543,-500.0,0.00016438,2]
[333949591,1722647439552,-602.34,0.00016438,2]
[333949592,1722647439561,-500.0,0.00016438,2]
[333949593,1722647439571,-1306.29,0.00016438,2]
[333949594,1722647439580,-1716.71,0.00016438,2]
[333949595,1722647439589,-813.31,0.00016438,2]
[333949596,1722647439598,-1552.94,0.00016438,2]
[333949597,1722647439608,-1068.19,0.00016438,2]
[333949598,1722647439617,-1371.86,0.00016438,2]
[333949599,1722647439629,-500.0,0.00016438,2]
[333949600,1722647439640,-500.0,0.00016438,2]
[333949601,1722647439650,-2141.51,0.00016438,2]
[333949602,1722647439660,-500.0,0.00016438,2]
[333949603,1722647439670,-867.29,0.00016438,2]
[333949604,1722647439680,-499.39993275,0.00016438,2]
[333949605,1722647439689,-500.0,0.00016438,2]
[333949606,1722647439699,-500.0,0.00016438,2]
[333949607,1722647439708,-1437.46,0.00016438,2]
[333949608,1722647439718,-1093.12,0.00016438,2]
[333949609,1722647439732,-586.48,0.00016438,2]
[333949610,1722647439742,-500.0,0.00016438,2]
[333949611,1722647439751,-500.0,0.00016438,2]
[333949612,1722647439761,-500.0,0.00016438,2]
[333949613,1722647439776,-500.0,0.00016438,2]
[333949614,1722647439786,-500.0,0.00016438,2]
[333949615,1722647439796,-1714.2,0.00016438,2]
[333949616,1722647439806,-947.26,0.00016438,2]
[333949617,1722647439816,-629.43,0.00016438,2]
[333949618,1722647439825,-500.0,0.00016438,2]
[333949619,1722647439836,-727.49,0.00016438,2]
[333949620,1722647439846,-500.0,0.00016438,2]
[333949621,1722647439856,-1562.22,0.00016438,2]
[333949622,1722647439866,-500.0,0.00016438,2]
[333949623,1722647439876,-500.0,0.00016438,2]
[333949624,1722647439885,-500.0,0.00016438,2]
[333949625,1722647439895,-958.98,0.00016438,2]
[333949626,1722647439904,-655.79,0.00016438,2]
[333949627,1722647439914,-1253.89,0.00016438,2]
[333949628,1722647439924,-2180.77,0.00016438,2]
[333949629,1722647439934,-500.0,0.00016438,2]
[333949630,1722647439944,-640.36,0.00016438,2]
[333949631,1722647439954,-1115.77,0.00016438,2]
[333949632,1722647439964,-505.21,0.00016438,2]
[333949633,1722647439976,-1553.05,0.00016438,2]
[333949634,1722647439986,-500.0,0.00016438,2]
[333949635,1722647439997,-2059.23,0.00016438,2]
[333949636,1722647440007,-500.0,0.00016438,2]
[333949637,1722647440016,-1072.65,0.00016438,2]
[333949638,1722647440025,-508.12,0.00016438,2]
[333949639,1722647440035,-1534.24,0.00016438,2]
[333949640,1722647440044,-2075.3,0.00016438,2]
[333949641,1722647440054,-1798.94,0.00016438,2]
[333949643,1722647440063,-500.0,0.00016438,2]
[333949644,1722647440073,-500.0,0.00016438,2]
[333949645,1722647440083,-709.58,0.00016438,2]
[333949646,1722647440092,-500.0,0.00016438,2]
[333949647,1722647440101,-1469.89,0.00016438,2]
[333949648,1722647440111,-500.0,0.00016438,2]
[333949649,1722647440120,-500.0,0.00016438,2]
[333949650,1722647440130,-1078.49,0.00016438,2]
[333949651,1722647440139,-500.0,0.00016438,2]
[333949652,1722647440149,-500.0,0.00016438,2]
[333949653,1722647440159,-2066.04,0.00016438,2]
[333949654,1722647440168,-627.03,0.00016438,2]
[333949655,1722647440178,-500.0,0.00016438,2]
[333949656,1722647440187,-1639.27,0.00016438,2]
[333949657,1722647440197,-1123.82,0.00016438,2]
[333949658,1722647440206,-500.0,0.00016438,2]
[333949659,1722647440216,-500.0,0.00016438,2]
[333949660,1722647440232,-604.07537337,0.00016438,2]
[333949661,1722647440242,-482.05055037,0.00016438,2]
[333949662,1722647440252,-1484.4,0.00016438,2]
[333949663,1722647440262,-558.83,0.00016438,2]
[333949664,1722647440272,-500.0,0.00016438,2]
[333949665,1722647440283,-693.84,0.00016438,2]
[333949666,1722647440293,-500.0,0.00016438,2]
[333949667,1722647440303,-614.81556424,0.00016438,2]
[333949668,1722647440313,-591.8,0.00016438,2]
[333949669,1722647440323,-500.9,0.00016438,2]
[333949670,1722647440334,-689.17,0.00016438,2]
[333949671,1722647440344,-913.67,0.00016438,2]
[333949672,1722647440354,-500.0,0.00016438,2]
[333949673,1722647440364,-500.0,0.00016438,2]
[333949674,1722647440374,-1977.53,0.00016438,2]
[333949675,1722647440385,-857.6,0.00016438,2]
[333949676,1722647440395,-696.45,0.00016438,2]
[333949677,1722647440405,-919.6,0.00016438,2]
[333949678,1722647440415,-500.0,0.00016438,2]
[333949679,1722647440424,-3040.78,0.00016438,2]
[333949680,1722647440434,-500.0,0.00016438,2]
[333949681,1722647440444,-675.52,0.00016438,2]
[333949682,1722647440454,-701.09,0.00016438,2]
[333949683,1722647440463,-1918.88,0.00016438,2]
[333949684,1722647440479,-987.48,0.00016438,2]
[333949685,1722647440490,-500.0,0.00016438,2]
[333949686,1722647440501,-502.71,0.00016438,2]
[333949687,1722647440510,-500.0,0.00016438,2]
[333949688,1722647440520,-500.0,0.00016438,2]
[333949689,1722647440530,-1155.84,0.00016438,2]
[333949690,1722647440541,-1534.03,0.00016438,2]
[333949691,1722647440550,-500.0,0.00016438,2]
[333949692,1722647440560,-1587.45,0.00016438,2]
[333949693,1722647440570,-610.06,0.00016438,2]
[333949694,1722647440579,-1125.86,0.00016438,2]
[333949695,1722647440591,-500.0,0.00016438,2]
[333949696,1722647440601,-2209.02,0.00016438,2]
[333949697,1722647440611,-925.28,0.00016438,2]
[333949698,1722647440621,-500.0,0.00016438,2]
[333949699,1722647440637,-614.4,0.00016438,2]
[333949700,1722647440647,-500.0,0.00016438,2]
[333949701,1722647440658,-542.45,0.00016438,2]
[333949702,1722647440668,-500.0,0.00016438,2]
[333949703,1722647440679,-1314.49,0.00016438,2]
[333949704,1722647440690,-500.0,0.00016438,2]
[333949705,1722647440700,-217.04799882,0.00016438,2]
[333949706,1722647440710,-1396.12,0.00016438,2]
[333949707,1722647440728,-2047.15,0.00016438,2]
[333949708,1722647440740,-500.0,0.00016438,2]
[333949709,1722647440752,-928.42,0.00016438,2]
[333949710,1722647440763,-517.1,0.00016438,2]
[333949711,1722647440775,-218.53050958,0.00016438,2]
[333949712,1722647440786,-549.63696978,0.00016438,2]
[333949713,1722647440798,-692.78,0.00016438,2]
[333949714,1722647440811,-829.09,0.00016438,2]
[333949715,1722647440822,-500.0,0.00016438,2]
[333949716,1722647440834,-500.0,0.00016438,2]
[333949717,1722647440846,-528.7,0.00016438,2]
[333949718,1722647440860,-886.88,0.00016438,2]
[333949719,1722647440871,-643.87,0.00016438,2]
[333949720,1722647440883,-500.0,0.00016438,2]
[333949721,1722647440894,-500.0,0.00016438,2]
[333949722,1722647440907,-500.0,0.00016438,2]
[333949723,1722647440919,-527.3,0.00016438,2]
[333949724,1722647440931,-1081.12,0.00016438,2]
[333949725,1722647440944,-1340.52,0.00016438,2]
[333949738,1722647441164,-2809.72,0.00016438,2]
[333949740,1722647441177,-616.35,0.00016438,2]
[333949742,1722647441188,-500.0,0.00016438,2]
[333949744,1722647441200,-500.0,0.00016438,2]
[333949746,1722647441212,-500.0,0.00016438,2]
[333949748,1722647441224,-515.3186922,0.00016438,2]
[333949750,1722647441236,-1117.08,0.00016438,2]
[333949752,1722647441248,-500.0,0.00016438,2]
[333949754,1722647441261,-831.2,0.00016438,2]
[333949757,1722647441278,-694.28,0.00016438,2]
[333949759,1722647441290,-2040.07,0.00016438,2]
[333949761,1722647441301,-696.12,0.00016438,2]
[333949763,1722647441313,-500.0,0.00016438,2]
[333949765,1722647441324,-500.0,0.00016438,2]
[333949767,1722647441335,-207.28376774,0.00016438,2]
[333949769,1722647441346,-500.0,0.00016438,2]
[333949771,1722647441358,-500.0,0.00016438,2]
[333949773,1722647441370,-647.36,0.00016438,2]
[333949775,1722647441381,-979.51,0.00016438,2]
[333949777,1722647441392,-617.0,0.00016438,2]
[333949779,1722647441405,-1236.76,0.00016438,2]
[333949781,1722647441417,-500.0,0.00016438,2]
[333949783,1722647441430,-500.0,0.00016438,2]
[333949785,1722647441444,-500.0,0.00016438,2]
[333949787,1722647441456,-547.13,0.00016438,2]
[333949789,1722647441468,-975.08,0.00016438,2]
[333949792,1722647441507,-744.04,0.00016438,2]
[333949794,1722647441518,-3174.03,0.00016438,2]
[333949796,1722647441529,-514.43,0.00016438,2]
[333949797,1722647441540,-1200.72,0.00016438,2]
[333949799,1722647441551,-200.0,0.00016438,2]
[333949801,1722647441562,-1283.12,0.00016438,2]
[333949803,1722647441574,-685.66,0.00016438,2]
[333949805,1722647441592,-1555.42,0.00016438,2]
[333949807,1722647441603,-500.0,0.00016438,2]
[333949809,1722647441614,-500.0,0.00016438,2]
[333949811,1722647441627,-500.0,0.00016438,2]
[333949813,1722647441638,-617.53,0.00016438,2]
[333949815,1722647441649,-680.72,0.00016438,2]
[333949817,1722647441661,-500.0,0.00016438,2]
[333949819,1722647441676,-500.0,0.00016438,2]
[333949821,1722647441687,-1259.58,0.00016438,2]
[333949823,1722647441699,-500.0,0.00016438,2]
[333949825,1722647441710,-833.03,0.00016438,2]
[333949827,1722647441722,-500.0,0.00016438,2]
[333949829,1722647441733,-579.2,0.00016438,2]
[333949831,1722647441745,-500.0,0.00016438,2]
[333949833,1722647441755,-1915.2,0.00016438,2]
[333949835,1722647441766,-500.0,0.00016438,2]
[333949837,1722647441778,-5606.39,0.00016438,2]
[333949839,1722647441789,-1715.5,0.00016438,2]
[333949841,1722647441801,-542.82,0.00016438,2]
[333949843,1722647441812,-636.31,0.00016438,2]
[333949845,1722647441823,-58601.09,0.00016438,2]
[333949847,1722647441834,-1157.75,0.00016438,2]
[333949849,1722647441845,-1868.93,0.00016438,2]
[333949851,1722647441855,-1587.1,0.00016438,2]
[333949853,1722647441867,-500.0,0.00016438,2]
[333949855,1722647441878,-500.0,0.00016438,2]
[333949857,1722647441890,-500.0,0.00016438,2]
[333949859,1722647441902,-1201.0,0.00016438,2]
[333949861,1722647441914,-500.0,0.00016438,2]
[333949863,1722647441925,-2025.7199248,0.00016438,2]
[333949948,1722647442927,-777.9900752,0.00016438,2]
[333949950,1722647442938,-500.0,0.00016438,2]
[333949952,1722647442947,-500.0,0.00016438,2]
[333949954,1722647442958,-500.0,0.00016438,2]
[333949956,1722647442968,-140.88012287,0.00016438,2]
[333950001,1722647443436,-1474.80620692,0.00016438,2]
[333950003,1722647443449,-1013.57367021,0.00016438,2]
[333950005,1722647443459,-745.84778316,0.00016438,2]
[333950008,1722647443476,-397.82221684,0.00016438,2]
[333950010,1722647443486,-500.0,0.00016438,2]
[333950012,1722647443496,-1648.14,0.00016438,2]
[333950014,1722647443506,-633.65,0.00016438,2]
[333950016,1722647443516,-772.72,0.00016438,2]
[333950018,1722647443534,-500.0,0.00016438,2]
[333950022,1722647443544,-2184.3,0.00016438,2]
[333950026,1722647443554,-710.47,0.00016438,2]
[333950029,1722647443564,-500.0,0.00016438,2]
[333950032,1722647443576,-6078.62,0.00016438,2]
[333950036,1722647443587,-3202.51,0.00016438,2]
[333950040,1722647443599,-1472.4,0.00016438,2]
[333950045,1722647443610,-1031.13,0.00016438,2]
[333950048,1722647443621,-906.39,0.00016438,2]
[333950050,1722647443637,-500.0,0.00016438,2]
[333950052,1722647443648,-1337.03,0.00016438,2]
[333950055,1722647443659,-500.0,0.00016438,2]
[333950060,1722647443672,-500.0,0.00016438,2]
[333950063,1722647443687,-500.0,0.00016438,2]
[333950066,1722647443698,-3344.02,0.00016438,2]
[333950069,1722647443709,-565.98,0.00016438,2]
[333950072,1722647443721,-9263.64,0.00016438,2]
[333950075,1722647443731,-1157.0,0.00016438,2]
[333950079,1722647443741,-952.39,0.00016438,2]
[333950083,1722647443751,-943.73,0.00016438,2]
[333950086,1722647443763,-3020.59,0.00016438,2]
[333950089,1722647443777,-894.13,0.00016438,2]
[333950091,1722647443792,-1057.78,0.00016438,2]
[333950095,1722647443803,-2366.13,0.00016438,2]
[333950098,1722647443814,-500.0,0.00016438,2]
[333950102,1722647443826,-1873.68,0.00016438,2]
[333950104,1722647443839,-742.15,0.00016438,2]
[333950106,1722647443849,-2967.29,0.00016438,2]
[333950108,1722647443860,-5947.41,0.00016438,2]
[333950110,1722647443871,-3438.46,0.00016438,2]
[333950112,1722647443881,-500.0,0.00016438,2]
[333950114,1722647443891,-500.0,0.00016438,2]
[333950116,1722647443901,-500.0,0.00016438,2]
[333950118,1722647443912,-1311.05,0.00016438,2]
[333950120,1722647443922,-665.43,0.00016438,2]
[333950122,1722647443933,-507.04,0.00016438,2]
[333950124,1722647443943,-1090.99,0.00016438,2]
[333950126,1722647443954,-9588.19,0.00016438,2]
[333950128,1722647443964,-2382.09,0.00016438,2]
[333950130,1722647443975,-2628.5,0.00016438,2]
[333950132,1722647443985,-1947.62,0.00016438,2]
[333950134,1722647443995,-500.0,0.00016438,2]
[333950136,1722647444005,-4884.78,0.00016438,2]
[333950138,1722647444015,-15309.35,0.00016438,2]
[333950140,1722647444032,-500.0,0.00016438,2]
[333950142,1722647444043,-500.0,0.00016438,2]
[333950144,1722647444053,-7735.99,0.00016438,2]
[333950146,1722647444063,-22174.14,0.00016438,2]
[333950149,1722647444074,-1016.1,0.00016438,2]
[333950151,1722647444084,-500.0,0.00016438,2]
[333950153,1722647444094,-508.26,0.00016438,2]
[333950155,1722647444104,-500.0,0.00016438,2]
[333950157,1722647444114,-1531.54,0.00016438,2]
[333950159,1722647444124,-500.0,0.00016438,2]
[333950161,1722647444133,-728.04,0.00016438,2]
[333950163,1722647444143,-612.33,0.00016438,2]
[333950165,1722647444153,-1756.95,0.00016438,2]
[333950167,1722647444163,-843.99,0.00016438,2]
[333950169,1722647444173,-743.94,0.00016438,2]
[333950171,1722647444183,-988.78,0.00016438,2]
[333950173,1722647444193,-500.0,0.00016438,2]
[333950175,1722647444203,-1772.04,0.00016438,2]
[333950177,1722647444213,-3808.8,0.00016438,2]